Cogmind - Beta 11.1 @@@ ROGUE MODE // 2022.12.03 @ 01:03:25 Player: woegarden Result: Destroyed by Y-45 Defender with Beam Rifle Performance ------------- Evolutions (1) 500 Regions Visited (3) 600 Robots Destroyed (13) 65 Value Destroyed (249) 249 Prototype IDs (4) 80 Alien Tech Used (0) 0 Bonus (100) 100 TOTAL SCORE: 1594 Bonus ------- Follower Combat Kills 100 Cogmind --------- Core Integrity 0/400 Matter 185/300 Energy 144/250 System Corruption 9% Temperature Cool (19) Movement Walking (120) Location -9/Storage Parts ------- > --- POWER (1) -------- Ion Engine > --- PROPULSION (4) --- Aluminum Leg Aluminum Leg Hover Unit > --- UTILITY (2) ------ (None) > --- WEAPON (2) ------- Light Assault Rifle > --- INVENTORY (5) ---- Light Ion Engine Light Ion Engine Peak State ------------ > --- POWER ------------ Cooled Ion Engine > --- PROPULSION ------- Hover Unit Hover Unit Hover Unit Improved Hover Unit > --- UTILITY ---------- Medium Storage Unit Seismic Detector > --- WEAPON ----------- Small Laser Light Assault Rifle > --- INVENTORY -------- Light Ion Engine Light Ion Engine Hover Unit Hover Unit Hover Unit Hover Unit Hover Unit Hover Unit Hover Unit Cooling System [Rating: 13] Favorites ----------- Power Light Ion Engine Engine Light Ion Engine Propulsion Light Treads Treads Light Treads Leg Aluminum Leg Wheel Compact Wheel Hover Unit Hover Unit Flight Unit Flight Unit Utility Seismic Detector Device Seismic Detector Storage Medium Storage Unit Weapon EM Pulse Gun Energy Gun EM Pulse Gun Energy Cannon Beam Cannon Ballistic Gun Light Assault Rifle Build | -11 -10 -9 -9 ------- Run | Scr Mat Mat Sto Slots Evolved 2 | . . 2 . Power . | . . . . Propulsion 2 | . . 2 . Utility . | . . . . Weapon . | . . . . Parts Attached 37 | . 13 5 19 Power 5 | . 2 . 3 Engine 5 | . 2 . 3 Core . | . . . . Reactor . | . . . . Propulsion 23 | . 4 5 14 Treads 2 | . 2 . . Leg 2 | . . . 2 Wheel 2 | . 2 . . Hover 12 | . . . 12 Flight 5 | . . 5 . Utility 4 | . 3 . 1 Device 3 | . 2 . 1 Storage 1 | . 1 . . Processor . | . . . . Hackware . | . . . . Protection . | . . . . Artifact . | . . . . Weapon 5 | . 4 . 1 Energy Gun 1 | . 1 . . Energy Cannon 1 | . 1 . . Ballistic Gun 3 | . 2 . 1 Ballistic Cannon . | . . . . Launcher . | . . . . Special Weapon . | . . . . Impact Weapon . | . . . . Slashing Weapon . | . . . . Piercing Weapon . | . . . . Special Melee Weapon . | . . . . Unidentified Prototypes 1 | . . . 1 Parts Lost 21 | . 5 1 15 Power 3 | . 2 . 1 Propulsion 11 | . . 1 10 Utility 3 | . 1 . 2 Weapon 4 | . 2 . 2 Highest Loss Streak 15 | . 2 1 15 To Critical Strikes . | . . . . Average Slot Usage (%) 87 | . 93 88 71 Engine 12 | . 12 11 10 Treads 12 | . 17 . . Leg 2 | . 3 . . Wheel 5 | . 6 11 . Hover 6 | . . . 27 Flight 1 | . . 22 2 Device 9 | . 10 11 6 Storage 12 | . 14 11 8 Energy Gun 17 | . 21 11 7 Energy Cannon 1 | . 2 . . Ballistic Gun 4 | . 2 11 6 Naked Turns . | . . . . Heaviest Build 22 | 12 20 16 22 Greatest Support 40 | 20 40 26 25 Greatest Overweight (x) 6 | . . . 6 Average Overweight (x) . | . . . . Largest Inventory Capacity 10 | . 10 10 10 Average Capacity 8 | . 8 10 8 Most Carried 10 | . 10 10 10 Average Carried 7 | . 8 8 6 Final Capacity 10 | 8 10 10 5 Final Carried 10 | 6 10 7 2 Class Distribution -------------------- 100% | Mutant Dominant Class ---------------- Mutant | -10/Materials Mutant | -9/Materials Mutant | -9/Storage Resources | -11 -10 -9 -9 ----------- Run | Scr Mat Mat Sto Matter Collected 372 | 200 111 . 61 Remotely . | . . . . Salvage Created 307 | . 256 . 51 Parts 26 | . 19 . 7 Haulers Intercepted . | . . . . Recyclers Shooed . | . . . . Parts Field Recycled . | . . . . Retrieved Matter . | . . . . Parts Self-Destructed . | . . . . Prevented . | . . . . Kills | -11 -10 -9 -9 ------- Run | Scr Mat Mat Sto Combat Hostiles Destroyed 13 | . 10 . 3 Guns 9 | . 6 . 3 Cannons 2 | . 2 . . AOE 2 | . 2 . . Classes Destroyed 2 | . 2 . . Swarmer 9 | . 6 . 3 Grunt 4 | . 4 . . Best Kill Streak 3 | . 3 . 3 Combat Bots Only 3 | . 3 . 3 Max Kills in Single Turn 2 | . 2 . 1 Gunslinging . | . . . . Exploded 2 | . 2 . . Melee . | . . . . Uniques/NPCs Destroyed . | . . . . Combat | -11 -10 -9 -9 -------- Run | Scr Mat Mat Sto Damage Taken 1845 | . 515 68 1262 Core 490 | . 85 10 395 Absorbed by Shields . | . . . . Core Remaining (%) 83 | 100 66 . . Volleys Fired 35 | . 27 . 8 Largest 2 | . 2 . 2 Hottest 90 | . 90 . 60 Shots Fired 68 | . 53 . 15 Gun 59 | . 44 . 15 Cannon 9 | . 9 . . Launcher . | . . . . Special . | . . . . Kinetic 17 | . 9 . 8 Thermal 34 | . 27 . 7 Explosive . | . . . . Electromagnetic 17 | . 17 . . Robot Hit Streak 7 | . 5 . 7 Robot Miss Streak 6 | . 6 . 3 Penetration Max . | . . . . Secondary Targets 2 | . . . 2 Max Gunslinging Chain 1 | . . . 1 Shots Hit Robots 35 | . 26 . 9 Core Hits 16 | . 12 . 4 Critical Kills . | . . . . Critical Parts Destroyed . | . . . . Critical Strikes 1 | . 1 . . Burn 1 | . 1 . . Melee Attacks . | . . . . Impact . | . . . . Slashing . | . . . . Piercing . | . . . . Sneak Attacks . | . . . . Combat Hostiles . | . . . . Follow-up Attacks . | . . . . Damage Inflicted 500 | . 393 . 107 Guns 350 | . 255 . 95 Cannons 53 | . 53 . . Explosions 85 | . 85 . . Melee . | . . . . Ramming 12 | . . . 12 Kinetic 83 | . 34 . 49 Thermal 317 | . 271 . 46 Explosive . | . . . . Electromagnetic 88 | . 88 . . Impact . | . . . . Slashing . | . . . . Piercing . | . . . . Highest Corruption 9 | . . . 9 Average Corruption 7 | . . . 7 Corruption Purged . | . . . . Corruption Blocked . | . . . . Effects 4 | . . . 4 Message Errors 1 | . . . 1 Matter Fused 1 | . . . 1 Heat Flow Errors 1 | . . . 1 Energy Discharges 1 | . . . 1 Overload Shots . | . . . . Overflow Damage 18 | . 18 . . Projectiles . | . . . . Explosions 18 | . 18 . . Melee . | . . . . Knockbacks . | . . . . Impact . | . . . . Kinetic . | . . . . Secondary . | . . . . Self-Inflicted Damage 59 | . 53 . 6 Shots 1 | . 1 . . Rammed 4 | . . . 4 Targets Rammed 4 | . . . 4 Kicked . | . . . . Crushed . | . . . . Highest Temperature 208 | . 208 13 178 Average Temperature 63 | . 70 6 43 Received Heat Transfer 522 | . 138 39 345 Siege Activations . | . . . . Robots Corrupted . | . . . . Combat Hostiles . | . . . . Parts Fried . | . . . . Impact Corruptions . | . . . . Robots Melted . | . . . . Combat Hostiles . | . . . . Parts Melted 1 | . 1 . . Heat Transferred 780 | . 680 . 100 Parts Sabotaged . | . . . . Parts Stolen . | . . . . Parts Stripped . | . . . . Power Chain Reactions 1 | . 1 . . Missiles Intercepted . | . . . . Alert | -11 -10 -9 -9 ------- Run | Scr Mat Mat Sto Peak Influence 206 | . 206 82 144 Initial 55 | . . 55 34 Average 78 | . 90 59 47 Maximum Alert Level 1 | . 1 . . Low Security (%) 98 | . 98 100 100 Level 1 1 | . 1 . . Level 2 . | . . . . Level 3 . | . . . . Level 4 . | . . . . Level 5 . | . . . . High Security . | . . . . Max Security . | . . . . Squads Dispatched 2 | . . 1 1 Investigation 1 | . . 1 . Extermination . | . . . . Reinforcement 1 | . . . 1 Assault . | . . . . Garrison . | . . . . Intercept . | . . . . Searches Triggered . | . . . . Construction Impeded . | . . . . Haulers Reinforced . | . . . . Active Scanning Responses . | . . . . Cargo Convoy Interrupts . | . . . . Stealth | -11 -10 -9 -9 --------- Run | Scr Mat Mat Sto Distress Signals 3 | . 2 1 . Communications Jammed . | . . . . Distress Signals . | . . . . Times Spotted 37 | . 16 7 14 Peak Tracking Total 10 | . 6 10 10 Tactical Retreats 2 | . 2 . . Traps | -11 -10 -9 -9 ------- Run | Scr Mat Mat Sto Traps Triggered 2 | . . . 2 Indirectly . | . . . . Trap Hack Attempts . | . . . . Triggered . | . . . . Disarmed . | . . . . Reprogrammed . | . . . . Reused . | . . . . Traps Extracted . | . . . . Installed . | . . . . Triggered . | . . . . Machines | -11 -10 -9 -9 ---------- Run | Scr Mat Mat Sto Machines Disabled 1 | . 1 . . Max in Single Turn 1 | . 1 . . Machines Sabotaged . | . . . . Garrisons Compromised . | . . . . Overloaded Fab Kills . | . . . . Hacking | -11 -10 -9 -9 --------- Run | Scr Mat Mat Sto Machines Accessed 2 | . 1 1 . Terminals 2 | . 1 1 . Fabricators . | . . . . Repair Stations . | . . . . Recycling Units . | . . . . Scanalyzers . | . . . . Garrison Access . | . . . . Total Hacks 12 | . 6 6 . Successful 7 | . 4 3 . Failed 5 | . 2 3 . Catastrophic . | . . . . Database Lockouts . | . . . . Manual . | . . . . Terminals 12 | . 6 6 . Fabricators . | . . . . Repair Stations . | . . . . Recycling Units . | . . . . Scanalyzers . | . . . . Garrison Access . | . . . . Terminal Hacks 7 | . 4 3 . Record 1 | . 1 . . Prototype ID Bank 2 | . 1 1 . Branch Access Points 2 | . 1 1 . Recycling Unit Index 1 | . 1 . . Locate Traps 1 | . . 1 . Fabricator Hacks . | . . . . Repair Station Hacks . | . . . . Recycling Unit Hacks . | . . . . Scanalyzer . | . . . . Garrison Access Hacks . | . . . . Unauthorized Hacks . | . . . . Terminals . | . . . . Fabricators . | . . . . Repair Stations . | . . . . Recycling Units . | . . . . Scanalyzers . | . . . . Garrison Access . | . . . . Data Cores Recovered . | . . . . Used . | . . . . Hacking Detections 2 | . 1 1 . Full Trace Events 2 | . 1 1 . Feedback Events . | . . . . Feedback Blocked . | . . . . Robot Schematics Acquired . | . . . . Robots Built . | . . . . Authchips . | . . . . Time . | . . . . Total Robot Build Rating . | . . . . Part Schematics Acquired . | . . . . Parts Built . | . . . . Authchips . | . . . . Time . | . . . . Total Part Build Rating . | . . . . Parts Repaired . | . . . . Time . | . . . . Parts Recycled . | . . . . Recycled Matter . | . . . . Retrieved Matter . | . . . . Retrieved Components . | . . . . Parts Scanalyzed . | . . . . Part Schematics Acquired . | . . . . Parts Damaged . | . . . . Bothacking | -11 -10 -9 -9 ------------ Run | Scr Mat Mat Sto Used RIF Installer . | . . . . Robots Hacked . | . . . . Non-combat . | . . . . Combat . | . . . . Robot Hacks Applied . | . . . . Relay Couplers Released . | . . . . Fabnet Peak Effective % . | . . . . Robots Rewired . | . . . . Allies Hacked . | . . . . Hacks Repelled . | . . . . Allies | -11 -10 -9 -9 -------- Run | Scr Mat Mat Sto Total Allies 10 | . . . 10 Largest Group 10 | . . . 10 Highest-Rated Group 88 | . . . 88 Highest-Rated Ally 16 | . . . 16 Total Orders . | . . . . Ally Attacks 21 | . . . 21 Total Damage 198 | . . . 198 Kills 4 | . . . 4 Allies Corrupted . | . . . . Allies Melted . | . . . . Intel | -11 -10 -9 -9 ------- Run | Scr Mat Mat Sto Robot Analysis Total . | . . . . Derelict Logs Recovered . | . . . . Drone Launches . | . . . . Drone Recoveries . | . . . . Exploration | -11 -10 -9 -9 ------------- Run | Scr Mat Mat Sto Turns Passed 766 | . 538 37 191 Spaces Moved 581 | 1 313 69 198 Core 2 | . . . 2 Treads 173 | . 173 . . Legs 46 | 1 41 . 4 Wheels 111 | . 99 12 . Hover 183 | . . . 183 Flight 66 | . . 57 9 Fastest Speed 31 | 120 90 31 31 Average Speed 97 | 120 132 41 60 Slowest Speed 350 | 120 160 90 350 Overloaded Moves . | . . . . Propulsion Burnouts . | . . . . Robots Hopped 4 | . . 4 . Cave-ins Triggered . | . . . . Exploration Rate (%) 23 | 1 45 7 42 Regions Visited 3 Branch Regions 1 Pre-discovered Areas . | . . . . Known Exits Taken 1 | . . 1 . Unknown Exits Taken 2 | 1 1 . . Scrap Searched . | . . . . Spaces Dug . | . . . . Terrain Destroyed 8 | . 8 . . Melee . | . . . . Projectile . | . . . . AOE 8 | . 8 . . Terrain Rammed . | . . . . Walls Destroyed . | . . . . Machines Disabled . | . . . . Actions | -11 -10 -9 -9 --------- Run | Scr Mat Mat Sto Total 712 | . 386 73 253 Wait 19 | . 6 . 13 Move 571 | . 312 61 198 Hop 3 | . . 3 . Pick Up 24 | . 16 2 6 Fast Attach 8 | . 5 . 3 Attach 18 | . 4 5 9 Detach . | . . . . Swap 11 | . 4 . 7 Drop 19 | . 12 2 5 Fire 35 | . 27 . 8 Melee . | . . . . Ram 4 | . . . 4 Kick . | . . . . Crush . | . . . . Escape Stasis . | . . . . Rewire . | . . . . Trap . | . . . . Miscellaneous . | . . . . Route ------- -11/Scrapyard -10/Materials (discovered 3 exits: *Mat / *Min x2) -9/Materials (discovered 3 exits: Min x2 / *Sto) -9/Storage History --------- Turn | Location | Event 1 | -11/Scrapyard | Discovered new exit (range 0) 1 | -11/Scrapyard | Entered Materials 81 | -10/Materials | Identified exit to Mines 271 | -10/Materials | Discovered new exit (range 16) 321 | -10/Materials | Build established: Mutant 539 | -10/Materials | Entered another Materials area 539 | -9/Materials | Evolved 2 slots: Propulsion x2 570 | -9/Materials | Identified exit to Mines 570 | -9/Materials | Identified exit to Storage 576 | -9/Materials | Entered Storage 706 | -9/Storage | Core integrity fell below 50% 716 | -9/Storage | Core integrity fell below 20% 738 | -9/Storage | Assisted by bots powering up and referring to "LRC-V3" 757 | -9/Storage | Lost 15 parts (1p10n2u2w) 767 | -9/Storage | Destroyed by Y-45 Defender with Beam Rifle Last Messages --------------- 00738_ S-10 Pest destroyed. 00738_ Acquired 20 matter. 00740_ Mercenary 2b destroyed. 00742_ Mercenary 2d destroyed. 00742_ L-31 Rogue destroyed. 00743_ Mercenary 2c destroyed. 00743_ Mercenary 2e destroyed. 00744_ Mercenary 2a destroyed. 00747_ Mercenary 2g destroyed. 00748_ System corrupted: Energy discharge (-28). 00749_ G-34 Mercenary destroyed. 00749_ Mercenary 2i destroyed. 00751_ Trooper 2a destroyed. 00751_ Mercenary 2h destroyed. 00753_ Mercenary 2f destroyed. 00755_ Acquired Aluminum Leg. 00762_ G-34 Mercenary destroyed. 00763_ Acquired 41 matter. 00764_ Acquired Lgt. Assault Rifle. 00765_ Critical hit (Burn: +37). Map ----- +----------------------------------------------------+ | +?????????? | | #?????????? | | ?##########+#### #?????????? | | ???????????????## ##?????????? | | ????????????????# #??????????? | | ????????????????# #??????????? | | ????????????????# #???###????? | | ????????????????# #?? ?????? | | ????????????????# #?""""?????? | | ????????????????# # """" ????? | | ????????????????# # """" ??#?? | | ????????????????#^ + """" #?? | | ????????????????# !# #?? | | ????????????????### # ] #?? | | ??????????????????# # #?? | | ??????????????????# + #?? | | ??????????????????# ###+##+#?#?? | | ???????########???# #?# != #???? | | ???????# #??## ###%=!%#???? | | ???????#[ !#### ##*[%=#???? | | ???????# + T *[!=#???? | | ???????# #### ###*[%#???? | | ???????#! ! #??##/##?#!==#???? | | ???????# !% #?? ?+ %[#???? | | ???????######### ###Y##??? | | ???????????????## """ ##@YY##?? | | ????????????????# R" #T *!Y#?? | | ????????????????# """ #*=%* #?? | | ????????????????# # =%! #?? | | ????????????????##############?? | | ???????????????????????????????? | | ???????????????????????????????? | | ???????????????????????????????? | | ???????????????????????????????? | | ???????????????????????????????? | | ???????????????????????????????? | | ???????????????????????????????? | | ???????????????????????????????? | | ???????????????????????????????? | | ???????????????????????????????? | | ???????????????????????????????? | | ???????????????????????????????? | | ???????????????????????????????? | | | | | | | | | | | | | | | +----------------------------------------------------+ Best States ------------- Heat Dissipation 50 Energy Generation 14 Energy Capacity 280 Matter Stores 300 Matter Capacity 300 Sight Range 16 Terrain Scan Density 10 Evasion (%) 63 Recoil Reduction 2 Item Schematics ----------------- None Robot Schematics ------------------ None Fabricated ------------ Nothing Alien Tech Used ----------------- None Achievements -------------- None Challenges ------------ None Game ------ Seed CouplerNeutronDevice Manual? 0 Play Time 00:11:42 Cumulative 98.1 hours Start 2022.12.03 @ 00:49:48 End 2022.12.03 @ 01:03:25 Sessions 1 Manual Loads 0 Difficulty Rogue Special Mode None Game No. 164 Rogue 118 Adventurer 45 Explorer 1 Win Type - Total 0 Types 0/0/0/0/0/0/0/0/0 Lore% 29 Gallery% 50 Achievement% 35 Wizard Run 0 Options --------- ASCII 0 Keyboard 0 Movement Mouse Keybinds 0 Fullscreen 2 Font 18/X11Bold Map View 76x50 Tactical HUD 1 Map Filters NONE Filters LOW_CONTRAST(13,24,33)|BRIGHTNESS(90)|SATURATION(87) Steam 1 RUN: b1f6a7a6-ea0b-40e8-9425-c0c4ef6fceba